Workbook

Sheet דוגמאות מרצה שאלות 1-5
I1: ערך נוכחי של סכום סדרתי (PV)
F3: שאלה 1
I11: סעיף א'
I12: נתונים:
I13: 200 | J13: PMT | K13: שכר בסוף כל שנה
I14: 3% | J14: r | K14: ריבית שנתית
I15: 5 | J15: n | K15: מספר שנים
I16: 0 | J16: Type | K16: תחילת / סוף שנה
J18: =PV(I14,I15,I13,,) -> ₪ -915.94 | K18: הסכום המינימאלי היום (PV)
I20: סעיף ב'
I21: נתונים:
I22: 200 | J22: PMT | K22: שכר בסוף כל שנה
I23: 3% | J23: r | K23: ריבית שנתית
I24: 5 | J24: n | K24: מספר שנים
I25: 1 | J25: Type | K25: תחילת / סוף שנה
J27: =PV(I23,I24,I22,,I25) -> ₪ -943.42 | K27: הסכום המינימאלי היום (PV)
F31: שאלה 2
I37: נתונים
I39: 1.00% | J39: r | K39: ריבית חודשית
I40: 25 | J40: n | K40: מספר שנים
I41: =25*12 -> 300 | J41: n | K41: המרה לחודשים
I42: 4000 | J42: PMT | K42: גובה החזר חודשי
I43: 0 | J43: Type | K43: תחילת / סוף חודש
I45: =PV(I39,I41,I42,,) -> ₪ -379,786.21 | K45: סכום המשכנתא (PV)
F59: שאלה 3
I68: נתונים
I69: חלופה 1
I71: 4% | J71: r | K71: ריבית שנתית
I72: 25 | J72: n | K72: מספר שנות עבודה
I73: 400000 | J73: PMT | K73: משכורת שנתית
I74: 0 | J74: Type | K74: תחילת / סוף שנה
I75: 7 | K75: סוף השנה שבה מתחיל לעבוד
I77: =PV(I71,I72,I73,,) -> ₪ -6,248,831.98 | J77: =PV(I71,I72,I73,,1) -> ₪ -6,498,785.26 | K77: הערך הנוכחי של המשכורת (נכון לסוף השנה ה-7) (PV)
I78: =PV(I71,I75,,I77) -> ₪ 4,748,598.73 | J78: =PV(I71,8,,J77) -> ₪ 4,748,598.73 | K78: הערך הנוכחי של המשכורת (נכון להיום) (PV)
I80: חלופה 2
J82: ₪ 5,500,000.00 | K82: הערך הנוכחי של המשכורת (נכון להיום)
K85: מהי החלופה העדיפה?
F101: שאלה 4
I106: נתונים
I108: 6.0% | J108: r | K108: ריבית לשנתיים
I109: 5 | J109: n | K109: מספר תקבולים
I110: 1000 | J110: PMT | K110: סכום התקבול הדו-שנתי
I111: 0 | J111: Type | K111: תחילת / סוף שנתיים
J113: =PV(I108,I109,I110,,) -> ₪ -4,212.36 | K113: הסכום המינימאלי שיתקבל היום (PV)
F129: שאלה 5
I137: נתונים
I139: סדרת משיכות
I141: 0.3% | J141: r | K141: ריבית חודשית
I142: 216 | J142: n | K142: מספר משיכות
I143: -8000 | J143: PMT | K143: משיכה חודשית
I144: 1 | J144: Type | K144: תחילת / סוף חודש
I146: =PV(I141,I142,I143,,I144) -> ₪ 1,274,214.97 | K146: סכום הכסף שיעמוד לרשותנו בגיל 67 (PV)
I149: סדרת הפקדות
I151: 0.3% | J151: r | K151: ריבית חודשית
I152: 504 | J152: n | K152: מספר משיכות
I153: =I146 -> ₪ 1,274,214.97 | J153: FV | K153: סכום הכסף שאליו צריך להגיע בגיל 67
I154: 0 | J154: Type | K154: תחילת / סוף חודש
J156: =PMT(I151,I152,,I153,I154) -> ₪ -1,084.27 | K156: סכום ההפקדה החודשי (PMT)

Sheet תרגול עצמי שאלות 6-9
I1: ערך נוכחי של סכום סדרתי (PV)
F4: שאלה 6
I18: A | J18: 4.0% | K18: r | L18: ריבית
J19: 10 | K19: n | L19: מספר משיכות/הפקדות
J20: 50000 | K20: PMT | L20: סכום שחוזר על עצמו
J21: 0 | K21: Type | L21: תחילת / סוף תקופה
J22: =PV(J18,J19,-J20,,J21) -> ₪ 405,544.79
J23: 350000
I25: B
J26: =PMT(J18,J19,-J23,,) -> ₪ 43,151.83
F49: שאלה 7
J56: 0.5% | K56: r | L56: ריבית
J57: =18*12 -> 216 | K57: n | L57: מספר משיכות/הפקדות
J58: =PMT(J56,J57,J60,,) -> ₪ -4,548.97 | K58: PMT | L58: סכום שחוזר על עצמו
J59: 0 | K59: Type | L59: תחילת / סוף תקופה
J60: 600000 | K60: PV
F74: שאלה 8
I89: חצי שנה ראשונה
I91: 0.8% | J91: r | K91: ריבית חודשית
I92: -5000 | J92: PMT | K92: שכר חודשי
I93: 6 | J93: n | K93: מספר חודשים
I94: 0 | J94: Type | K94: תחילת / סוף חודש
J96: =PV(I91,I93,I92,,I94) -> ₪ 29,177.60 | K96: הערך הנוכחי של תקבולי חצי השנה | M96: PV0
I99: חצי שנה שלישית
I101: 1.3% | J101: r | K101: ריבית חודשית
I102: 20000 | J102: PMT | K102: שכר חודשי
I103: 6 | J103: n | K103: מספר חודשים
I104: 0 | J104: Type | K104: תחילת / סוף חודש
J106: =PV(I101,I103,I102,,) -> ₪ -114,723.88 | K106: הערך הנוכחי של תקבולי חצי השנה
J107: =PV(I91,12,,J106) -> ₪ 104,262.34 | M107: PV0
J109: =J96+J107 -> ₪ 133,439.94
F126: שאלה 9
I135: סדרת תקבולים (חודשים אי-זוגיים)
I136: 1.00%
I137: 2.01% | J137: r | K137: ריבת לחודשיים
I138: 6 | J138: n | K138: מספר תקבולים
I139: -1000 | J139: PMT | K139: סכום התקבול הדו-חודשי
I140: 0 | J140: Type | K140: תחילת / סוף חודש
J142: =PV(I137,I138,I139,,I140) -> ₪ 5,599.54 | K142: הערך הנוכחי של התקבולים בחודשים האי-זוגיים (נכון לזמן 1-) (PV)
J143: =FV(I136,1,,-J142) -> ₪ 5,655.54 | K143: הערך הנוכחי של התקבולים בחודשים האי-זוגיים (נכון לזמן 0) (PV)
I145: סדרת תשלומים (חודשים זוגיים)
I147: 2.01% | J147: r | K147: ריבת לחודשיים
I148: 6 | J148: n | K148: מספר תקבולים
I149: 1010 | J149: PMT | K149: סכום התקבול הדו-חודשי
I150: 0 | J150: Type | K150: תחילת / סוף חודש
J152: =PV(I147,I148,I149,,I150) -> ₪ -5,655.54 | K152: הערך הנוכחי של התקבולים בחודשים הזוגיים (נכון לזמן 0) (PV)
J154: =SUM(J152,J143) -> ₪ 0.00 | K154: הרווח / ההפסד מהמשחק במונחים נוכחיים

Sheet תרגול כיתה שאלות 10-14
F4: שאלה 10
K11: 1.0% | L11: r | M11: ריבית
K12: =20*12 -> 240 | L12: n | M12: מספר משיכות/הפקדות
K13: =PMT(K11,K12,K15,,) -> ₪ -11,010.86 | L13: PMT | M13: סכום שחוזר על עצמו
K14: 0 | L14: Type | M14: תחילת / סוף תקופה
K15: 1000000 | L15: PV
F33: שאלה 11
K42: 0.4% | L42: r | M42: ריבית
K43: 36 | L43: n | M43: מספר משיכות/הפקדות
K44: =PMT(K42,K43,K46,) -> ₪ -5,617.66 | L44: PMT | M44: סכום שחוזר על עצמו
K45: 0 | L45: Type | M45: תחילת / סוף תקופה
K46: =200000*(1-0.06) -> 188000 | L46: PV
F70: שאלה 12
K81: 0.8% | L81: r | M81: ריבית
J82: 180 | K82: =23*12 -> 276 | L82: n | M82: מספר משיכות/הפקדות
K83: ₪ 10,000.00 | L83: PMT | M83: סכום שחוזר על עצמו
K84: 0 | L84: Type | M84: תחילת / סוף תקופה
K85: =PV(K81,K82,K83,,) -> ₪ -1,111,387.26 | L85: PV180
K87: =PV(K81,J82,,K85) -> ₪ 264,831.50 | L87: PV0
F109: שאלה 13
K116: 0.6% | L116: r | M116: ריבית
K117: 240 | L117: n | M117: מספר משיכות/הפקדות
K118: ₪ 15,000.00 | L118: PMT | M118: סכום שחוזר על עצמו
K119: 1 | L119: Type | M119: תחילת / סוף תקופה
K120: =PV(K116,K117,K118,,K119) -> ₪ -1,916,557.24 | L120: PV540
K122: 0.6% | L122: r | M122: ריבית
K123: 540 | L123: n | M123: מספר משיכות/הפקדות
K124: =PMT(K122,K123,,K120) -> ₪ 473.46 | L124: PMT | M124: סכום שחוזר על עצמו
K125: 0 | L125: Type | M125: תחילת / סוף תקופה
F141: שאלה 14
K150: 7600
K151: 0.3% | L151: r | M151: ריבית
K152: 3 | L152: n | M152: מספר משיכות/הפקדות
K153: ₪ -10,000.00 | L153: PMT | M153: סכום שחוזר על עצמו
K154: 1 | L154: Type | M154: תחילת / סוף תקופה
K155: =PV(K151,K152,K153,,K154) -> ₪ 29,910.36 | L155: PV30
K157: =K155+K150 -> ₪ 37,510.36
K159: =PMT(K151,30,,K157) -> ₪ -1,196.80

Sheet תרגילי בית 15-20
F5: שאלה 15
I16: A | M16: B | Q16: C
K17: -35000
I18: 5.0% | J18: r | K18: ריבית | M18: 5.0% | N18: r | O18: ריבית
I19: 4 | J19: n | K19: מספר משיכות/הפקדות | M19: 4 | N19: n | O19: מספר משיכות/הפקדות
I20: ₪ 3,000.00 | J20: PMT | K20: סכום שחוזר על עצמו | M20: ₪ 10,000.00 | N20: PMT | O20: סכום שחוזר על עצמו
I21: 0 | J21: Type | K21: תחילת / סוף תקופה | M21: 0 | N21: Type | O21: תחילת / סוף תקופה
I22: =PV(I18,I19,I20,,) -> ₪ -10,637.85 | J22: PV | M22: =PV(M18,M19,M20,,) -> ₪ -35,459.51 | N22: PV
I24: =I22+K17 -> ₪ -45,637.85 | R24: -25000
P25: 5.0% | Q25: r | R25: ריבית
P26: 4 | Q26: n | R26: מספר משיכות/הפקדות
P27: ₪ 8,000.00 | Q27: PMT | R27: סכום שחוזר על עצמו
P28: 0 | Q28: Type | R28: תחילת / סוף תקופה
P29: =PV(P25,P26,P27,,) -> ₪ -28,367.60 | Q29: PV
P31: =P29+R24 -> ₪ -53,367.60
F43: שאלה 16
I51: 4.0% | J51: r | K51: ריבית
I52: 4 | J52: n | K52: מספר משיכות/הפקדות
I53: ₪ 15,000.00 | J53: PMT | K53: סכום שחוזר על עצמו
I54: 1 | J54: Type | K54: תחילת / סוף תקופה
I55: =PV(I51,I52,I53,,I54) -> ₪ -56,626.37 | J55: PV
I58: 4.0% | J58: r | K58: ריבית
I59: =NPER(I58,I60,,I63) -> 24.53731522 | J59: n | K59: מספר משיכות/הפקדות
I60: ₪ 1,400.00 | J60: PMT | K60: סכום שחוזר על עצמו
I61: 0 | J61: Type | K61: תחילת / סוף תקופה
I62: ₪ 0.00 | J62: PV
I63: =I55 -> ₪ -56,626.37 | J63: FV
F77: שאלה 17
I85: סכום חד פעמי | L85: סדרה 36 | O85: סדרה 144
I86: 0.4% | J86: r | L86: 0.4% | M86: r
I87: =20*12 -> 240 | J87: n | L87: 36 | M87: n | O87: 0.4% | P87: r
I88: ₪ 0.00 | J88: PMT | L88: ₪ 50.00 | M88: PMT | O88: 144 | P88: n
I89: 0 | J89: Type | L89: 0 | M89: Type | O89: ₪ -50.00 | P89: PMT
I90: ₪ -25,000.00 | J90: PV | L90: ₪ 0.00 | M90: PV | O90: 0 | P90: Type
I91: =FV(I86,I87,I88,I90,) -> ₪ 65,167.50 | J91: FV | L91: =FV(L86,L87,L88,L90,) -> ₪ -1,931.91 | M91: FV36 | O91: ₪ 0.00 | P91: PV
O92: =FV(O87,O88,O89,O91,) -> ₪ 9,710.82 | P92: FV
L93: =240-36 -> 204 | M93: N
L94: =FV(L86,L93,,L91) -> ₪ 4,361.78 | M94: FV
O98: =O92+L94+I91 -> ₪ 79,240.10
F114: שאלה 18
I121: סדרה 36 | L121: סדרה 10
I122: 0.5% | J122: r | L122: 0.5% | M122: r
I123: 36 | J123: n | L123: 10 | M123: n
I124: ₪ 10,000.00 | J124: PMT | L124: ₪ 5,000.00 | M124: PMT
I125: 0 | J125: Type | L125: 0 | M125: Type
I126: =PV(I122,I123,I124,,) -> ₪ -328,710.16 | J126: PV | L126: =PV(L122,L123,L124,,) -> ₪ -48,652.06 | M126: PV
I127: 0 | J127: FV | L127: 0 | M127: FV
I129: 0.5% | J129: r | L129: 0.5% | M129: r
I130: 12 | J130: n | L130: 2 | M130: n
I131: ₪ 0.00 | J131: PMT | L131: ₪ 0.00 | M131: PMT
I132: 0 | J132: Type | L132: 0 | M132: Type
I133: =PV(I129,I130,I131,I134) -> ₪ 309,613.86 | J133: PV | L133: =PV(L129,L130,L131,L134) -> ₪ 48,169.16 | M133: PV
I134: =I126 -> ₪ -328,710.16 | J134: FV | L134: =L126 -> ₪ -48,652.06 | M134: FV
L136: =L133+I133 -> ₪ 357,783.02
F145: שאלה 19
I153: A | K153: B | M153: C
I155: =-30300*(1-0.03) -> -29391 | K155: 4.0% | L155: r | N155: 4.0% | O155: r
K156: 1 | L156: n | N156: 3 | O156: n
K157: ₪ 0.00 | L157: PMT | N157: =30300/3 -> ₪ 10,100.00 | O157: PMT
K158: 0 | L158: Type | N158: 0 | O158: Type
K159: =PV(K155,K156,K157,K160) -> ₪ -30,008.65 | L159: PV | N159: =PV(N155,N156,N157,,) -> ₪ -28,028.42 | O159: PV
K160: =30300*(1+0.03) -> 31209 | L160: FV | N160: 0 | O160: FV
F181: שאלה 20
J188: A | M188: B
J189: 9.2% | K189: r | L189: 3.0% | M189: 9.2% | N189: r
J190: 4 | K190: n | M190: 4 | N190: n
J191: ₪ 4,000.00 | K191: PMT | M191: ₪ 4,000.00 | N191: PMT
J192: 0 | K192: Type | M192: 0 | N192: Type
J193: =PV(J189,J190,-J191,,) -> ₪ 12,902.19 | K193: PV | M193: =PV(M189,M190,M191,,) -> ₪ -12,902.19 | N193: PV
J194: 0 | K194: FV | M194: 0 | N194: FV
M196: =FV(L189,1,,M193) -> ₪ 13,289.26 | N196: PV0
J198: C
J199: =FV(L189,2,,M193) -> ₪ 13,687.94
